fUSD/lending_fUSD_20260416
["ID","MTS","AMOUNT","RATE_DAILY","PERIOD"]
[420591960,1776285039512,-500.0,0.00013698,2]
[420591962,1776285039521,-500.0,0.00013698,2]
[420591964,1776285039530,-500.0,0.00013698,2]
[420591966,1776285039539,-500.0,0.00013698,2]
[420591968,1776285039548,-377.39852235,0.00013698,2]
[420591970,1776285039558,-599.71,0.00013698,2]
[420591973,1776285039568,-599.71,0.00013698,2]
[420591975,1776285039577,-599.71,0.00013698,2]
[420591977,1776285039586,-599.71,0.00013698,2]
[420591979,1776285039595,-599.71,0.00013698,2]
[420591981,1776285039605,-599.71,0.00013698,2]
[420591983,1776285039615,-500.0,0.00013698,2]
[420591985,1776285039625,-500.0,0.00013698,2]
[420591987,1776285039635,-500.0,0.00013698,2]
[420591989,1776285039644,-500.0,0.00013698,2]
[420591991,1776285039653,-500.0,0.00013698,2]
[420591993,1776285039663,-500.0,0.00013698,2]
[420591995,1776285039672,-957.57,0.00013698,2]
[420591997,1776285039682,-957.57,0.00013698,2]
[420591999,1776285039691,-957.57,0.00013698,2]
[420592001,1776285039701,-957.57,0.00013698,2]
[420592003,1776285039711,-957.57,0.00013698,2]
[420592005,1776285039720,-957.57,0.00013698,2]
[420592007,1776285039729,-500.0,0.00013698,2]
[420592009,1776285039739,-500.0,0.00013698,2]
[420592011,1776285039748,-500.0,0.00013698,2]
[420592013,1776285039758,-500.0,0.00013698,2]
[420592015,1776285039767,-500.0,0.00013698,2]
[420592017,1776285039778,-500.0,0.00013698,2]
[420592019,1776285039787,-500.0,0.00013698,2]
[420592021,1776285039796,-500.0,0.00013698,2]
[420592023,1776285039805,-500.0,0.00013698,2]
[420592025,1776285039815,-500.0,0.00013698,2]
[420592028,1776285039824,-500.0,0.00013698,2]
[420592030,1776285039834,-500.0,0.00013698,2]
[420592032,1776285039843,-500.0,0.00013698,2]
[420592034,1776285039854,-500.0,0.00013698,2]
[420592036,1776285039863,-500.0,0.00013698,2]
[420592038,1776285039873,-454.04008591,0.00013698,2]
[420592040,1776285039883,-1406.23,0.00013699,2]
[420592042,1776285039892,-166.66,0.00013699,2]
[420592044,1776285039902,-692.887852,0.00013699,2]
[420592046,1776285039911,-692.887852,0.00013699,2]
[420592048,1776285039921,-692.887852,0.00013699,2]
[420592050,1776285039930,-151.0,0.00013699,2]
[420592052,1776285039939,-692.887852,0.00013699,2]
[420592054,1776285039948,-151.0,0.00013699,2]
[420592056,1776285039957,-151.0,0.00013699,2]
[420592058,1776285039967,-151.0,0.00013699,2]
[420592060,1776285039976,-151.0,0.00013699,2]
[420592062,1776285039985,-200.0,0.00013699,2]
[420592064,1776285039994,-500.0,0.00013699,2]
[420592066,1776285040003,-202.32423888,0.00013699,2]
[420592068,1776285040013,-500.0,0.00013699,2]
[420592070,1776285040023,-500.0,0.00013699,2]
[420592072,1776285040033,-500.0,0.00013699,2]
[420592074,1776285040042,-500.0,0.00013699,2]
[420592076,1776285040051,-502.68607407,0.00013699,2]
[420592077,1776285040061,-500.0,0.00013699,2]
[420592078,1776285040071,-201.09,0.00013699,2]
[420592079,1776285040081,-786.68,0.00013699,2]
[420592080,1776285040090,-500.0,0.00013699,2]
[420592081,1776285040100,-500.0,0.00013699,2]
[420592082,1776285040110,-367.57694474,0.00013699,2]
[420592083,1776285040119,-151.0,0.00013699,2]
[420592084,1776285040129,-1000.0,0.00013699,2]
[420592085,1776285040138,-1000.0,0.00013699,2]
[420592086,1776285040147,-1000.0,0.00013699,15]
[420592087,1776285040157,-1089.22158527,0.00013699,15]
[420592088,1776285040166,-466.6495,0.00013699,2]
[420592089,1776285040176,-162.0,0.000137,2]
[420592090,1776285040186,-500.0,0.00013709,2]
[420592091,1776285040196,-500.0,0.00013709,2]
[420592092,1776285040205,-318.06660751,0.00013709,2]
[420592095,1776285040214,-500.0,0.0001376,2]
[420592097,1776285040224,-151.0,0.00013788,2]
[420592098,1776285040233,-151.0,0.00013788,2]
[420592100,1776285040243,-151.0,0.00013788,2]
[420592102,1776285040253,-161.029866,0.00013788,2]
[420592104,1776285040262,-151.0,0.00013788,2]
[420592106,1776285040272,-151.0,0.00013788,2]
[420592108,1776285040282,-301.970509,0.00013788,2]
[420592109,1776285040291,-250.0,0.00013788,2]
[420592110,1776285040300,-24082.91249573,0.00013789,2]
[420592111,1776285040310,-162.0,0.00013805,2]
[420592112,1776285040320,-166.66,0.00013836,2]
[420592113,1776285040329,-151.0,0.00013848,2]
[420592114,1776285040339,-171.175013,0.00013848,2]
[420592115,1776285040350,-500.0,0.00013878,2]
[420592116,1776285040359,-2400.0,0.000139,5]
[420592117,1776285040369,-893.80300435,0.000139,2]
[420592118,1776285040378,-150.0,0.00013901,3]
[420592119,1776285040388,-292.0,0.00013901,3]
[420592120,1776285040397,-1000.0,0.00013904,2]
[420592121,1776285040406,-151.0,0.00013914,2]
[420592122,1776285040417,-500.0,0.00013917,2]
[420592123,1776285040427,-500.0,0.00013917,2]
[420592124,1776285040437,-500.0,0.00013917,2]
[420592125,1776285040446,-500.0,0.00013917,2]
[420592126,1776285040456,-500.0,0.00013917,2]
[420592127,1776285040465,-500.0,0.00013917,2]
[420592128,1776285040476,-500.0,0.00013917,2]
[420592129,1776285040485,-500.0,0.00013917,2]
[420592130,1776285040495,-500.0,0.00013917,2]
[420592131,1776285040505,-500.0,0.00013917,2]
[420592132,1776285040514,-500.0,0.00013917,2]
[420592133,1776285040524,-500.0,0.00013917,2]
[420592134,1776285040533,-500.0,0.00013917,2]
[420592135,1776285040543,-500.0,0.00013917,2]
[420592136,1776285040553,-500.0,0.00013917,2]
[420592137,1776285040563,-500.0,0.00013917,2]
[420592138,1776285040572,-500.0,0.00013917,2]
[420592139,1776285040582,-500.0,0.00013917,2]
[420592140,1776285040591,-500.0,0.00013917,2]
[420592141,1776285040602,-500.0,0.00013917,2]
[420592142,1776285040612,-500.0,0.00013917,2]
[420592143,1776285040622,-231.61268892,0.00013917,2]
[420592144,1776285040631,-166.66,0.00013973,2]
[420592145,1776285040641,-786.68,0.00013973,2]
[420592146,1776285040650,-1021.0,0.0001398,2]
[420592147,1776285040659,-5440.89996692,0.0001399,2]
[420592148,1776285040669,-312.063,0.00014,2]
[420592149,1776285040678,-1613.0,0.00014044,2]
[420592150,1776285040687,-6453.0,0.00014044,2]
[420592151,1776285040696,-2129.0,0.00014048,2]
[420592153,1776285040706,-747.8093786,0.00014092,2]
[420592154,1776285040715,-599.60298507,0.00014092,2]
[420592155,1776285040724,-209.40437684,0.00014093,2]
[420592156,1776285040734,-200.0,0.00014093,2]
[420592157,1776285040743,-181.08010149,0.00014093,2]
[420592158,1776285040752,-335.6632325,0.00014093,2]
[420592159,1776285040762,-166.66,0.0001411,2]
[420592160,1776285040771,-1000.0,0.00014122,2]
[420592161,1776285040780,-5258.32023433,0.00014169,2]
[420592162,1776285040790,-31153.74164413,0.00014203,2]
[420592163,1776285040799,-692.887852,0.00014206,2]
[420592164,1776285040808,-692.887852,0.00014206,2]
[420592165,1776285040818,-692.887852,0.00014206,2]
[420592166,1776285040828,-692.887852,0.00014206,2]
[420592167,1776285040837,-166.66,0.00014247,2]
[420592168,1776285040846,-500.0,0.00014247,2]
[420592169,1776285040857,-500.0,0.00014247,2]
[420592170,1776285040867,-1000.0,0.00014247,2]
[420592171,1776285040876,-197.55261272,0.00014247,2]
[420592172,1776285040886,-786.68,0.00014247,2]
[420592173,1776285040896,-153.14636732,0.00014257,2]
[420592174,1776285040905,-1000.0,0.00014262,2]
[420592175,1776285040915,-1000.0,0.00014266,2]
[420592176,1776285040925,-6554.40570387,0.00014305,2]
[420592177,1776285040935,-804.205199,0.00014305,2]
[420592178,1776285040945,-1042.942013,0.00014305,2]
[420592179,1776285040954,-1042.942013,0.00014305,2]
[420592180,1776285040963,-1042.942013,0.00014305,2]
[420592181,1776285040973,-1042.942013,0.00014305,2]
[420592182,1776285040982,-804.205199,0.00014305,2]
[420592183,1776285040991,-804.205199,0.00014305,2]
[420592184,1776285041001,-804.205199,0.00014305,2]
[420592185,1776285041011,-350.11398471,0.00014308,2]
[420592186,1776285041261,-1575.0,0.0001434,2]
[420592187,1776285041273,-1000.0,0.00014365,2]
[420592188,1776285041284,-1406.23,0.00014384,2]
[420592189,1776285041293,-166.66,0.00014384,2]
[420592190,1776285041303,-986.84,0.00014384,2]
[420592191,1776285041313,-188.31545869,0.00014409,2]
[420592192,1776285041322,-418.0,0.00014411,2]
[420592193,1776285041332,-1000.0,0.00014426,2]
[420592194,1776285041342,-207.59876516,0.00014507,2]
[420592195,1776285041353,-500.0,0.00014507,2]
[420592196,1776285041362,-500.0,0.00014507,2]
[420592197,1776285041372,-500.0,0.00014507,2]
[420592198,1776285041381,-500.0,0.00014507,2]
[420592199,1776285041391,-151.0,0.00014508,2]
[420592200,1776285041400,-151.0,0.00014508,2]
[420592201,1776285041409,-151.0,0.00014508,2]
[420592202,1776285041418,-500.0,0.0001451,2]
[420592203,1776285041428,-500.0,0.0001451,2]
[420592204,1776285041437,-500.0,0.0001451,2]
[420592205,1776285041446,-500.0,0.0001451,2]
[420592206,1776285041455,-500.0,0.0001451,2]
[420592207,1776285041464,-500.0,0.0001451,2]
[420592208,1776285041473,-272.98,0.0001451,2]
[420592209,1776285041482,-151.0,0.0001451,2]
[420592210,1776285041491,-151.0,0.0001451,2]
[420592211,1776285041500,-151.0,0.0001451,2]
[420592212,1776285041510,-500.0,0.0001451,2]
[420592213,1776285041519,-500.0,0.0001451,2]
[420592214,1776285041528,-500.0,0.0001451,2]
[420592215,1776285041538,-629.4624,0.0001451,2]
[420592216,1776285041547,-700.3,0.00014521,2]
[420592217,1776285041556,-1000.0,0.00014523,2]
[420592218,1776285041566,-500.0,0.00014536,2]
[420592219,1776285041575,-500.0,0.00014537,2]
[420592220,1776285041584,-200.0,0.00014537,2]
[420592221,1776285041594,-500.0,0.00014537,2]
[420592222,1776285041604,-500.0,0.00014537,2]
[420592223,1776285041613,-504.12223561,0.00014537,2]
[420592224,1776285041622,-599.71,0.00014537,2]
[420592225,1776285041631,-500.0,0.00014537,2]
[420592226,1776285041640,-957.57,0.00014537,2]
[420592227,1776285041650,-500.0,0.00014537,2]
[420592228,1776285041660,-500.0,0.00014537,2]
[420592229,1776285041669,-500.0,0.00014538,2]
[420592230,1776285041678,-500.0,0.00014538,2]
[420592231,1776285041688,-500.0,0.00014538,2]
[420592232,1776285041697,-500.0,0.00014538,2]
[420592233,1776285041707,-200.0,0.00014538,2]
[420592234,1776285041716,-2400.32503068,0.0001456,2]
[420592235,1776285041725,-377.39648373,0.00014573,2]
[420592236,1776285041735,-259.13,0.00014586,2]
[420592237,1776285041745,-1000.0,0.00014586,2]
[420592238,1776285041754,-418.0,0.00014604,2]
[420592239,1776285041763,-629.4624,0.0001461,2]
[420592240,1776285041772,-1000.0,0.00014613,2]
[420592241,1776285041781,-232.83456536,0.00014641,2]
[420592242,1776285041790,-200.0,0.00014641,2]
[420592243,1776285041799,-187.78006525,0.00014641,2]
[420592244,1776285041808,-348.0827721,0.00014641,2]
[420592245,1776285041818,-238.80492651,0.00014655,2]
[420592246,1776285041827,-462.78163477,0.00014655,2]
[420592247,1776285041836,-791.74970406,0.00014655,2]
[420592248,1776285041845,-6705.04,0.00014655,2]
[420592249,1776285041855,-986.84,0.00014658,2]
[420592250,1776285041864,-967.92709271,0.00014662,2]
[420592251,1776285041873,-4800.0,0.000147,5]
[420592252,1776285041882,-629.4624,0.0001471,2]
[420592253,1776285041892,-200.0,0.00014795,3]
[420592254,1776285041901,-325.22,0.00014795,3]
[420592255,1776285041910,-1500.0,0.00014795,2]
[420592256,1776285041920,-867.93560842,0.00014795,2]
[420592257,1776285041930,-7200.0,0.000148,5]
[420592258,1776285041939,-629.46241,0.0001481,2]
[420592259,1776285041949,-1000.0,0.00014827,2]
[420592260,1776285041958,-150.0,0.00014841,7]
[420592261,1776285041967,-1000.0,0.00014845,2]
[420592262,1776285041976,-150.0,0.00014872,2]
[420592263,1776285041986,-9600.0,0.000149,5]
[420592264,1776285041995,-1000.0,0.00014901,2]
[420592265,1776285042004,-629.4624,0.0001491,2]
[420592266,1776285042013,-985.16,0.00014932,2]
[420592267,1776285042022,-1500.0,0.00014974,2]
[420592268,1776285042032,-1000.0,0.00014994,2]
[420592269,1776285042042,-1000.0,0.00014998,2]
[420592270,1776285042051,-1000.0,0.00014998,2]
[420592271,1776285042061,-165.9853,0.00015,2]
[420592272,1776285042071,-150.0,0.00015,2]
[420592273,1776285042080,-300.58448038,0.00015,2]
[420592274,1776285042090,-302.85,0.00015,2]
[420592275,1776285042099,-200.0,0.00015,2]
[420592276,1776285042109,-200.0,0.00015,2]
[420592277,1776285042118,-200.0,0.00015,2]
[420592278,1776285042127,-200.0,0.00015,2]
[420592279,1776285042137,-213.6,0.00015,2]
[420592280,1776285042147,-300.0,0.00015,2]
[420592281,1776285042156,-3231.12345678,0.00015,2]
[420592282,1776285042166,-1699.17829694,0.00015,2]
[420592283,1776285042176,-629.4624,0.0001501,2]
[420592284,1776285042185,-150.0,0.00015068,2]
[420592285,1776285042195,-150.0,0.00015068,2]
[420592286,1776285042204,-150.0,0.00015068,2]
[420592287,1776285042214,-150.0,0.00015068,2]
[420592288,1776285042223,-150.0,0.00015068,2]
[420592289,1776285042233,-274.0,0.00015068,2]
[420592290,1776285042242,-161.0,0.00015068,2]
[420592291,1776285042251,-1406.23,0.00015068,2]
[420592292,1776285042262,-900.0,0.00015068,2]
[420592293,1776285042271,-439.938388,0.00015068,2]
[420592294,1776285042281,-439.938388,0.00015068,2]
[420592295,1776285042290,-439.938388,0.00015068,2]
[420592296,1776285042301,-439.938388,0.00015068,2]
[420592297,1776285042310,-439.938388,0.00015068,2]
[420592298,1776285042320,-439.938388,0.00015068,2]
[420592299,1776285042330,-439.938388,0.00015068,2]
[420592300,1776285042340,-439.938388,0.00015068,2]
[420592301,1776285042349,-800.0,0.00015068,2]
[420592302,1776285042359,-3148.4135753,0.00015102,2]
[420592303,1776285042400,-1254.41808677,0.00015102,2]
[420592304,1776285042422,-2151.5740418,0.00015102,2]
[420592305,1776285042431,-150.0,0.00015152,2]
[420592306,1776285042440,-151.0,0.00015152,2]
[420592307,1776285042450,-151.0,0.00015152,2]
[420592308,1776285042460,-150.0,0.00015161,2]
[420592309,1776285042469,-151.0,0.00015161,2]
[420592310,1776285042479,-82.0659582,0.00015161,2]
[420592311,1776285042490,-384.5835418,0.00015161,2]
[420592312,1776285042500,-600.0,0.00015161,2]
[420592313,1776285042509,-107.43529727,0.00015161,2]
[420592314,1776285042520,-492.56470273,0.00015161,2]
[420592315,1776285042529,-600.0,0.00015161,2]
[420592316,1776285042538,-600.0,0.00015161,2]
[420592317,1776285042547,-600.0,0.00015161,2]
[420592318,1776285042556,-555.42392408,0.00015161,2]
[420592319,1776285042568,-44.57607592,0.00015161,2]
[420592320,1776285042578,-600.0,0.00015161,2]
[420592321,1776285042586,-600.0,0.00015161,2]
[420592322,1776285042596,-600.0,0.00015161,2]
[420592323,1776285042606,-483.0,0.00015161,2]
[420592324,1776285042615,-200.0,0.00015189,2]
[420592325,1776285042628,-180.58123877,0.00015189,2]
[420592326,1776285042637,-136.16151514,0.00015189,2]
[420592327,1776285042648,-309.2523579,0.00015189,2]
[420592328,1776285042658,-150.0,0.000152,2]
[420592329,1776285042667,-150.0,0.000152,2]
[420592330,1776285042676,-150.0,0.000152,2]
[420592331,1776285042685,-285.0,0.000152,2]
[420592332,1776285042695,-1111.63713901,0.000152,2]
[420592333,1776285042707,-1015.04698736,0.000152,2]
[420592348,1776285046788,-535.0,0.00013425,2]
[420592349,1776285046798,-500.0,0.00013425,2]
[420592350,1776285046808,-500.0,0.00013425,2]
[420592351,1776285046818,-535.0,0.00013425,2]
[420592352,1776285046827,-500.0,0.00013425,2]
[420592353,1776285046836,-500.0,0.00013425,2]
[420592354,1776285046847,-500.0,0.00013425,2]
[420592355,1776285046859,-539.08075296,0.00013425,2]
[420592356,1776285046868,-466.6495,0.00013699,2]
[420592357,1776285046878,-466.6495,0.00013699,2]
[420592359,1776285046888,-466.6495,0.00013699,2]
[420592360,1776285046897,-893.80300435,0.0001455,2]
[420592362,1776285046906,-8160.91215413,0.00014769,2]
[420592365,1776285046919,-7954.2,0.00014769,2]
[420592378,1776285047061,-2320.39628465,0.00014769,2]
[420592391,1776285047380,-2473.0,0.00012452,2]
[420592392,1776285047390,-500.0,0.00013425,2]
[420592393,1776285047399,-500.0,0.00013425,2]
[420592394,1776285047409,-500.0,0.00013425,2]
[420592395,1776285047418,-500.0,0.00013425,2]
[420592396,1776285047427,-500.0,0.00013425,2]
[420592397,1776285047437,-500.0,0.00013425,2]
[420592398,1776285047446,-500.0,0.00013425,2]
[420592399,1776285047455,-500.0,0.00013425,2]
[420592400,1776285047465,-12718.23320535,0.00014769,2]
[420592401,1776285047474,-466.6495,0.00015161,2]
[420592402,1776285047484,-466.6495,0.00015161,2]
[420592403,1776285047493,-466.6495,0.00015161,2]
[420592404,1776285047502,-5000.0,0.000152,2]
[420592405,1776285047512,-1000.0,0.000152,2]
[420592406,1776285047522,-1000.0,0.000152,2]
[420592407,1776285047531,-1000.0,0.000152,2]
[420592408,1776285047540,-316.95,0.000152,2]
[420592409,1776285047549,-7577.18864736,0.000152,2]
[420592410,1776285047558,-2686.71003227,0.000152,2]
[420592411,1776285047567,-2787.7743378,0.000152,2]
[420592412,1776285047576,-893.80300435,0.000152,2]
[420592413,1776285047585,-163.0,0.0001522,2]
[420592414,1776285047595,-2400.32503066,0.0001523,2]
[420592415,1776285047604,-500.0,0.00015273,2]
[420592416,1776285047614,-500.0,0.00015273,2]
[420592417,1776285047623,-500.0,0.00015273,2]
[420592418,1776285047632,-500.0,0.00015273,2]
[420592419,1776285047641,-500.0,0.00015273,2]
[420592420,1776285047650,-159.99880788,0.00015273,2]
[420592421,1776285047659,-226.17096899,0.00015273,2]
[420592422,1776285047669,-246.96646229,0.00015273,2]
[420592423,1776285047678,-637.34336559,0.00015273,2]
[420592424,1776285047687,-637.34336559,0.00015291,7]
[420592425,1776285047696,-151.0,0.00015297,2]
[420592426,1776285047705,-151.0,0.00015297,2]
[420592427,1776285047714,-151.0,0.00015297,2]
[420592428,1776285047723,-151.0,0.00015297,2]
[420592429,1776285047732,-151.0,0.00015297,2]
[420592430,1776285047741,-151.0,0.00015297,2]
[420592431,1776285047750,-168.19349018,0.00015297,2]
[420592432,1776285047759,-500.0,0.00015298,2]
[420592433,1776285047768,-500.0,0.00015298,2]
[420592434,1776285047778,-500.0,0.00015298,2]
[420592435,1776285047787,-150.0,0.00015298,2]
[420592436,1776285047796,-150.0,0.00015298,2]
[420592437,1776285047805,-150.0,0.00015298,2]
[420592438,1776285047814,-199.0,0.00015298,2]
[420592439,1776285047824,-500.0,0.00015299,2]
[420592440,1776285047833,-500.0,0.00015299,2]
[420592441,1776285047842,-500.0,0.00015299,2]
[420592442,1776285047851,-500.0,0.00015299,2]
[420592443,1776285047861,-500.0,0.00015299,2]
[420592444,1776285047871,-500.0,0.00015299,2]
[420592445,1776285047880,-646.61878745,0.00015299,2]
[420592446,1776285047890,-500.0,0.00015299,2]
[420592447,1776285047899,-500.0,0.00015299,2]
[420592448,1776285047909,-500.0,0.00015299,2]
[420592449,1776285047919,-500.0,0.00015299,2]
[420592450,1776285047928,-500.0,0.00015299,2]
[420592451,1776285047937,-500.0,0.00015299,2]
[420592452,1776285047947,-500.0,0.00015299,2]
[420592453,1776285047956,-666.0,0.00015299,2]
[420592454,1776285047965,-500.0,0.00015299,2]
[420592455,1776285047975,-500.0,0.00015299,2]
[420592456,1776285047984,-500.0,0.00015299,2]
[420592457,1776285047994,-500.0,0.00015299,2]
[420592458,1776285048004,-500.0,0.00015299,2]
[420592459,1776285048013,-500.0,0.00015299,2]
[420592460,1776285048023,-500.0,0.00015299,2]
[420592461,1776285048032,-500.0,0.00015299,2]
[420592462,1776285048042,-500.0,0.00015299,2]
[420592463,1776285048051,-500.0,0.00015299,2]
[420592464,1776285048061,-500.0,0.00015299,2]
[420592465,1776285048070,-500.0,0.00015299,2]
[420592466,1776285048080,-500.0,0.00015299,2]
[420592467,1776285048090,-500.0,0.00015299,2]
[420592468,1776285048100,-300.0,0.00015299,2]
[420592469,1776285048111,-666.0,0.00015299,2]
[420592470,1776285048120,-151.0,0.00015299,2]
[420592471,1776285048130,-151.0,0.00015299,2]
[420592472,1776285048140,-151.0,0.00015299,2]
[420592473,1776285048150,-300.0,0.00015299,2]
[420592474,1776285048159,-300.0,0.00015299,2]
[420592475,1776285048169,-666.0,0.00015299,2]
[420592476,1776285048179,-599.71,0.00015299,2]
[420592477,1776285048188,-599.71,0.00015299,2]
[420592478,1776285048197,-599.71,0.00015299,2]
[420592479,1776285048206,-599.71,0.00015299,2]
[420592480,1776285048215,-599.71,0.00015299,2]
[420592481,1776285048224,-599.71,0.00015299,2]
[420592482,1776285048233,-599.71,0.00015299,2]
[420592483,1776285048242,-500.0,0.00015299,2]
[420592484,1776285048251,-500.0,0.00015299,2]
[420592485,1776285048262,-500.0,0.00015299,2]
[420592486,1776285048271,-633.02264767,0.00015299,2]
[420592487,1776285048280,-957.57,0.00015299,2]
[420592488,1776285048290,-957.57,0.00015299,2]
[420592489,1776285048300,-957.57,0.00015299,2]
[420592490,1776285048310,-957.57,0.00015299,2]
[420592491,1776285048319,-957.57,0.00015299,2]
[420592492,1776285048329,-957.57,0.00015299,2]
[420592493,1776285048338,-957.57,0.00015299,2]
[420592494,1776285048349,-500.0,0.00015299,2]
[420592495,1776285048361,-364.88174967,0.00015299,2]
[420592496,1776285048371,-500.0,0.00015299,2]
[420592497,1776285048381,-500.0,0.00015299,2]
[420592498,1776285048390,-500.0,0.00015299,2]
[420592499,1776285048400,-500.0,0.00015299,2]
[420592500,1776285048409,-500.0,0.00015299,2]
[420592501,1776285048418,-500.0,0.00015299,2]
[420592502,1776285048427,-500.0,0.00015299,2]
[420592503,1776285048436,-643634.56759709,0.000153,2]
[420592504,1776285048934,-280.3825,0.00013407,2]
[420592505,1776285049147,-4719.6175,0.00013407,2]
[420592506,1776285049156,-502.0,0.000135,2]
[420592507,1776285049166,-502.0,0.00014321,2]
[420592508,1776285049175,-502.0,0.00015142,3]
[420592509,1776285049185,-475.24058857,0.0001529,2]
[420592510,1776285049195,-453973.53577791,0.000153,2]
[420592511,1776285049222,-7457.13294981,0.000153,2]
[420592512,1776285049234,-6541.14211521,0.000153,2]
[420592513,1776285061322,300.0,8.721e-05,2]
[420592514,1776285064512,-9700.01,8.722e-05,2]
[420592515,1776285074260,-10000.01,8.722e-05,2]
[420592516,1776285074425,-10000.01,8.722e-05,2]
[420592517,1776285074684,-10000.01,8.722e-05,2]
[420592518,1776285074745,-10000.01,8.722e-05,2]
[420592519,1776285074846,-10000.01,8.722e-05,2]
[420592520,1776285074967,-10000.01,8.722e-05,2]
[420592521,1776285075093,-10000.01,8.722e-05,2]
[420592522,1776285089212,278.188,8.547e-05,2]
[420592523,1776285089293,2822.945,8.547e-05,2]
[420592524,1776285123395,924.145614,8.678e-05,2]
[420592525,1776285127104,867.0,8.547e-05,3]
[420592526,1776285132533,158.0,8.547e-05,3]
[420592527,1776285140806,157.0,8.547e-05,3]
[420592529,1776285244980,824.0,8.547e-05,3]
[420592531,1776285253593,158.0,8.547e-05,3]
[420592533,1776285308131,783.0,8.547e-05,3]
[420592534,1776285311927,182.0,8.547e-05,3]
[420592536,1776285317103,158.0,8.547e-05,3]
[420592537,1776285329817,-263.0,8.703e-05,2]
[420592538,1776285367523,744.0,8.547e-05,3]
[420592539,1776285368937,250.0,8.633e-05,2]
[420592540,1776285369066,250.0,8.685e-05,2]
[420592541,1776285375938,158.0,8.547e-05,3]
[420592543,1776285426210,706.0,8.547e-05,3]
[420592544,1776285432269,158.0,8.547e-05,3]
[420592545,1776285447125,488.2776,8.602e-05,2]
[420592546,1776285448273,200.0,8.6e-05,2]
[420592547,1776285462261,158.0,8.547e-05,3]
[420592548,1776285485592,671.0,8.547e-05,3]
[420592549,1776285491218,158.0,8.547e-05,3]
[420592550,1776285502617,2500.0,8.622e-05,2]
[420592552,1776285548425,158.0,8.547e-05,3]
[420592553,1776285606811,637.0,8.547e-05,3]
[420592554,1776285608768,173.0,8.547e-05,3]
[420592555,1776285612625,158.0,8.547e-05,3]
[420592557,1776285667683,606.0,8.547e-05,3]
[420592558,1776285669033,2500.0,8.622e-05,2]
[420592559,1776285674105,161.0,8.547e-05,3]
[420592560,1776285678206,470.77,0.00015552,30]
[420592561,1776285690815,2972.285,8.547e-05,2]
[420592562,1776285690890,280.001,8.547e-05,2]
[420592563,1776285732461,575.0,8.547e-05,3]
[420592564,1776285738580,161.0,8.547e-05,3]
[420592565,1776285793584,158.0,8.547e-05,3]
[420592566,1776285835200,-2500.0,8.622e-05,2]
[420592567,1776285847271,582.0,8.547e-05,3]
[420592569,1776285911738,553.0,8.547e-05,3]
[420592570,1776285967806,525.0,8.547e-05,3]
[420592571,1776286027680,10000.01,8.622e-05,2]
[420592572,1776286027707,10000.01,8.622e-05,2]
[420592573,1776286027734,10000.01,8.622e-05,2]
[420592574,1776286027760,10000.01,8.622e-05,2]
[420592575,1776286027787,10000.01,8.622e-05,2]
[420592576,1776286027814,10000.01,8.622e-05,2]
[420592577,1776286027840,10000.01,8.622e-05,2]